Cogmind - Beta 13 @@@ ROGUE MODE // 2024.06.15 @ 18:56:31 Player: Minty Result: Destroyed by G-34 Mercenary with Small Laser Performance ------------- Evolutions (0) 0 Regions Visited (1) 200 Robots Destroyed (10) 50 Value Destroyed (255) 255 Prototype IDs (0) 0 Alien Tech Used (0) 0 Bonus (0) 0 TOTAL SCORE: 505 Bonus ------- None Cogmind --------- Core Integrity 0/250 Matter 218/300 Energy 85/250 System Corruption 0% Temperature Cool (92) Movement Treading (160) Location -10/Materials Parts ------- > --- POWER (1) -------- Ion Engine > --- PROPULSION (2) --- Light Treads > --- UTILITY (2) ------ Medium Storage Unit Utility Shielding > --- WEAPON (2) ------- Light EM Pulse Cannon > --- INVENTORY (10) --- Improved Heat Sink High-capacity Matter Pod (96) High-capacity Matter Pod (0) ECM Suite ECM Suite Utility Shielding Peak State ------------ > --- POWER ------------ Light Ion Engine > --- PROPULSION ------- Aluminum Leg Aluminum Leg > --- UTILITY ---------- Improved Heat Sink Small Storage Unit > --- WEAPON ----------- Assault Rifle Assault Rifle > --- INVENTORY -------- Ion Engine Light Treads Light Treads Compact Wheel Compact Wheel Small Laser [Rating: 9] Favorites ----------- Power Light Ion Engine Engine Light Ion Engine Propulsion Compact Wheel Treads Light Treads Leg Aluminum Leg Wheel Compact Wheel Utility Small Storage Unit Device Improved Heat Sink Storage Small Storage Unit Protection Utility Shielding Weapon Assault Rifle Energy Gun Small Laser Energy Cannon Light EM Pulse Cannon Ballistic Gun Assault Rifle Build | -11 -10 ------- Run | Yrd Mat Slots Evolved . | . . Power . | . . Propulsion . | . . Utility . | . . Weapon . | . . Parts Attached 11 | . 11 Power 1 | . 1 Engine 1 | . 1 Core . | . . Reactor . | . . Propulsion 5 | . 5 Treads 2 | . 2 Leg 1 | . 1 Wheel 2 | . 2 Hover . | . . Flight . | . . Utility 3 | . 3 Device 1 | . 1 Storage 1 | . 1 Processor . | . . Hackware . | . . Protection 1 | . 1 Artifact . | . . Weapon 2 | . 2 Energy Gun 1 | . 1 Energy Cannon 1 | . 1 Ballistic Gun . | . . Ballistic Cannon . | . . Launcher . | . . Special Weapon . | . . Impact Weapon . | . . Slashing Weapon . | . . Piercing Weapon . | . . Special Melee Weapon . | . . Unidentified Prototypes . | . . Parts Lost 7 | . 7 Power 1 | . 1 Propulsion 3 | . 3 Utility . | . . Weapon 3 | . 3 Highest Loss Streak 7 | . 7 To Critical Strikes . | . . Average Slot Usage (%) 88 | . 88 Engine 13 | . 13 Treads 3 | . 3 Leg 10 | . 10 Wheel 12 | . 12 Device 6 | . 6 Storage 14 | . 14 Protection 3 | . 3 Energy Gun 1 | . 1 Energy Cannon 1 | . 1 Ballistic Gun 21 | . 21 Naked Turns . | . . Heaviest Build 18 | 12 18 Greatest Support 40 | 20 40 Greatest Overweight (x) . | . . Average Overweight (x) . | . . Largest Inventory Capacity 10 | . 10 Average Capacity 8 | . 8 Most Carried 10 | . 10 Average Carried 7 | . 7 Final Capacity 10 | 8 10 Final Carried 6 | 6 6 Class Distribution -------------------- 100% | Mutant Dominant Class ---------------- Mutant | -10/Materials Resources | -11 -10 ----------- Run | Yrd Mat Matter Collected 432 | 200 232 Remotely . | . . Salvage Created 372 | . 372 Parts 24 | . 24 Haulers Intercepted 1 | . 1 Recyclers Shooed . | . . Parts Field Recycled . | . . Retrieved Matter . | . . Parts Self-Destructed . | . . Prevented . | . . Kills | -11 -10 ------- Run | Yrd Mat Combat Hostiles Destroyed 8 | . 8 Guns 6 | . 6 Cannons 2 | . 2 Classes Destroyed 4 | . 4 Hauler 1 | . 1 Operator 1 | . 1 Swarmer 2 | . 2 Grunt 6 | . 6 Best Kill Streak 5 | . 5 Combat Bots Only 5 | . 5 Max Kills in Single Turn 2 | . 2 Gunslinging 1 | . 1 Exploded . | . . Melee . | . . Uniques/NPCs Destroyed . | . . Combat | -11 -10 -------- Run | Yrd Mat Hostile Shots Fired 154 | . 154 Missed 41 | . 41 Damage Taken 1048 | . 1048 Core 251 | . 251 Absorbed by Shields . | . . Redirected to Shielding 11 | . 11 Core Remaining (%) 100 | 100 . Volleys Fired 34 | . 34 Largest 2 | . 2 Hottest 56 | . 56 Shots Fired 59 | . 59 Gun 53 | . 53 Cannon 6 | . 6 Launcher . | . . Special . | . . Kinetic 50 | . 50 Thermal 3 | . 3 Explosive . | . . Electromagnetic 6 | . 6 Robot Hit Streak 6 | . 6 Robot Miss Streak 2 | . 2 Penetration Max . | . . Secondary Targets 1 | . 1 Max Gunslinging Chain 1 | . 1 Shots Hit Robots 42 | . 42 Core Hits 19 | . 19 Critical Kills 1 | . 1 Critical Parts Destroyed . | . . Critical Strikes 1 | . 1 Destroy 1 | . 1 Melee Attacks . | . . Impact . | . . Slashing . | . . Piercing . | . . Sneak Attacks . | . . Combat Hostiles . | . . Follow-up Attacks . | . . Damage Inflicted 632 | . 632 Guns 504 | . 504 Cannons 122 | . 122 Explosions . | . . Melee . | . . Ramming 6 | . 6 Kinetic 484 | . 484 Thermal 20 | . 20 Explosive . | . . Electromagnetic 122 | . 122 Impact . | . . Slashing . | . . Piercing . | . . Highest Corruption . | . . Average Corruption . | . . Corruption Purged . | . . Corruption Blocked . | . . Overload Shots . | . . Overflow Damage . | . . Projectiles . | . . Explosions . | . . Melee . | . . Knockbacks . | . . Impact . | . . Kinetic . | . . Secondary . | . . Self-Inflicted Damage . | . . Shots . | . . Rammed 3 | . 3 Targets Rammed 3 | . 3 Kicked . | . . Crushed . | . . Highest Temperature 86 | . 86 Average Temperature 32 | . 32 Received Heat Transfer 324 | . 324 Siege Activations . | . . Robots Corrupted . | . . Combat Hostiles . | . . Parts Fried . | . . Impact Corruptions . | . . Robots Melted . | . . Combat Hostiles . | . . Parts Melted . | . . Heat Transferred 50 | . 50 Parts Sabotaged . | . . Parts Stolen . | . . Parts Stripped . | . . Power Chain Reactions . | . . Alert | -11 -10 ------- Run | Yrd Mat Peak Influence 207 | . 207 Initial . | . . Average 114 | . 114 Maximum Alert Level 1 | . 1 Low Security (%) 97 | . 97 Level 1 2 | . 2 Level 2 . | . . Level 3 . | . . Level 4 . | . . Level 5 . | . . High Security . | . . Max Security . | . . Squads Dispatched 4 | . 4 Investigation 2 | . 2 Extermination . | . . Reinforcement 2 | . 2 Assault . | . . Garrison . | . . Intercept . | . . Searches Triggered . | . . Construction Impeded . | . . Haulers Reinforced . | . . Active Scanning Responses . | . . Cargo Convoy Interrupts . | . . Stealth | -11 -10 --------- Run | Yrd Mat Distress Signals 1 | . 1 Communications Jammed . | . . Distress Signals . | . . Times Spotted 20 | . 20 Peak Tracking Total 11 | . 11 Tactical Retreats 1 | . 1 Traps | -11 -10 ------- Run | Yrd Mat Traps Triggered 1 | . 1 Indirectly . | . . Trap Hack Attempts . | . . Triggered . | . . Disarmed . | . . Reprogrammed . | . . Reused . | . . Traps Extracted . | . . Installed . | . . Triggered . | . . Machines | -11 -10 ---------- Run | Yrd Mat Machines Disabled . | . . Max in Single Turn . | . . Machines Repaired . | . . Machines Dismantled . | . . Machines Sabotaged . | . . Overloaded Fab Kills . | . . Hacking | -11 -10 --------- Run | Yrd Mat Machines Accessed 1 | . 1 Terminals 1 | . 1 Fabricators . | . . Repair Stations . | . . Recycling Units . | . . Scanalyzers . | . . Garrison Access . | . . Total Hacks 3 | . 3 Successful 3 | . 3 Failed . | . . Catastrophic . | . . Database Lockouts . | . . Manual 1 | . 1 Terminals 3 | . 3 Fabricators . | . . Repair Stations . | . . Recycling Units . | . . Scanalyzers . | . . Garrison Access . | . . Terminal Hacks 2 | . 2 Security Status 1 | . 1 Hauler Manifests 1 | . 1 Fabricator Hacks . | . . Repair Station Hacks . | . . Recycling Unit Hacks . | . . Scanalyzer . | . . Garrison Access Hacks . | . . Unauthorized Hacks 1 | . 1 Terminals 1 | . 1 Botnet 1 | . 1 Fabricators . | . . Repair Stations . | . . Recycling Units . | . . Scanalyzers . | . . Garrison Access . | . . Data Cores Recovered . | . . Used . | . . Hacking Detections 1 | . 1 Full Trace Events 1 | . 1 Feedback Events . | . . Feedback Blocked . | . . Robot Schematics Acquired . | . . Robots Built . | . . Authchips . | . . Time . | . . Total Robot Build Rating . | . . Part Schematics Acquired . | . . Parts Built . | . . Authchips . | . . Time . | . . Total Part Build Rating . | . . Parts Repaired . | . . Time . | . . Parts Recycled . | . . Recycled Matter . | . . Retrieved Matter . | . . Retrieved Components . | . . Parts Scanalyzed . | . . Part Schematics Acquired . | . . Parts Damaged . | . . Bothacking | -11 -10 ------------ Run | Yrd Mat Used RIF Installer . | . . Robots Hacked . | . . Non-combat . | . . Combat . | . . Robot Hacks Applied . | . . Relay Couplers Released . | . . Fabnet Peak Effective % . | . . Robots Rewired . | . . Allies Hacked . | . . Hacks Repelled . | . . Allies | -11 -10 -------- Run | Yrd Mat Total Allies . | . . Largest Group . | . . Highest-Rated Group . | . . Highest-Rated Ally . | . . Total Orders . | . . Ally Attacks . | . . Total Damage . | . . Kills . | . . Allies Corrupted . | . . Allies Melted . | . . Intel | -11 -10 ------- Run | Yrd Mat Robot Analysis Total . | . . Derelict Logs Recovered . | . . Drone Launches . | . . Drone Recoveries . | . . Exploration | -11 -10 ------------- Run | Yrd Mat Turns Passed 250 | . 250 Spaces Moved 119 | 1 118 Core . | . . Treads 10 | . 10 Legs 36 | 1 35 Wheels 73 | . 73 Hover . | . . Flight . | . . Fastest Speed 100 | 120 100 Average Speed 111 | 120 111 Slowest Speed 160 | 120 160 Overloaded Moves . | . . Propulsion Burnouts . | . . Robots Hopped . | . . Cave-ins Triggered . | . . Exploration Rate (%) 14 | 2 27 Regions Visited 1 Branch Regions . Pre-discovered Areas . | . . Known Exits Taken . | . . Unknown Exits Taken 1 | 1 . Scrap Searched . | . . Spaces Dug . | . . Terrain Destroyed . | . . Melee . | . . Projectile . | . . AOE . | . . Terrain Rammed . | . . Walls Destroyed . | . . Machines Disabled . | . . Actions | -11 -10 --------- Run | Yrd Mat Total 178 | . 178 Wait 2 | . 2 Move 118 | . 118 Hop . | . . Pick Up 5 | . 5 Fast Attach 3 | . 3 Attach 6 | . 6 Detach 1 | . 1 Swap 2 | . 2 Drop 4 | . 4 Fire 34 | . 34 Melee . | . . Ram . | . . Kick . | . . Crush 3 | . 3 Escape Stasis . | . . Rewire . | . . Trap . | . . Miscellaneous . | . . Route ------- -11/Scrapyard -10/Materials History --------- Turn | Location | Event 1 | -11/Scrapyard | Discovered new exit (range 0) 1 | -11/Scrapyard | Entered Materials 210 | -10/Materials | Core integrity fell below 50% 226 | -10/Materials | Core integrity fell below 20% 251 | -10/Materials | Destroyed by G-34 Mercenary with Small Laser Last Messages --------------- 00206_ ALERT: Hostiles spotted, dispatching reinforcements to Terminal M006. 00206_ O-16 Technician locks terminal. 00209_ Assault Rifle destroyed. 00211_ Com. Wheel destroyed. 00215_ K-01 Serf cleans the Terminal. 00218_ Slammed into S-10 Pest. 00222_ Sml. Laser destroyed. 00224_ K-01 Serf cleans the Terminal. 00225_ S-10 Pest destroyed. 00228_ G-34 Mercenary destroyed. 00231_ K-01 Serf collects debris. 00234_ G-34 Mercenary destroyed. 00236_ Lgt. Treads destroyed. 00239_ Acquired Lgt. EM Pulse Cannon. 00246_ K-01 Serf collects debris. 00247_ S-10 Pest destroyed. 00250_ K-01 Serf collects debris. 00250_ K-01 Serf cleans the Terminal. 00251_ G-34 Mercenary destroyed. Map ----- +----------------------------------------------------+ | | | | | | | | | | | | | | | | | | | | | | | | | | | | | | | | | | | ?????????????????????????????????????????????????? | | ?????????????????????????????????????????????????? | | ?????????????????????????????????????????????????? | | ?????????????????????????????????????????????????? | | ???????????????????????#####?????????????????????? | | ???????????????????????#]] #?????????????????????? | | ???????????????????????#]] #?????????????????????? | | ???????????????????????#]]*#?????????????????????? | | ???????????????????????#]@!#?????????????????????? | | ???????????????????????#]]%###+##????????????????? | | ???????????????????????#]]sg ##### #?????????? | | ???????????????????????#####g #?????????? | | ???????????????????????????#![T #?????????? | | ???????????????????????????#*kk ##+##+##?????????? | | ?????????????????????????####= ##????????????????? | | ????????????????????????##! #?????????????????? | | ????????????????????????#! #?????????????????? | | ????????????????????????#! % #?????????????????? | | ????????????????????????#! =**#?????????????????? | | ????????????????????????#! % #????#####????????? | | ????????????????????????##! = #### ####?????? | | ?????????????????????????#### ????? | | ????????????????????????????# ????? | | ????????????????????????????# ????? | | ????????????????????????????#[%#### ####?????? | | ????????????????????????????# =#????#+###????????? | | ????????????????????????????# #?????????????????? | | ????????????????????????????# #?????????????????? | | ????????????????????????????# #?????????????????? | | ????????????????????????????# #?????????????????? | | ????????????????????????????# #?????????????????? | | ????????????????????????????#!!#?????????????????? | | ????????????????????????????#%!#?????????????????? | +----------------------------------------------------+ Best States ------------- Heat Dissipation 39 Energy Generation 10 Energy Capacity 250 Matter Stores 300 Matter Capacity 300 Sight Range 16 Terrain Scan Density 10 Utility Shielding 33 Evasion (%) 55 Recoil Reduction 2 Item Schematics ----------------- None Robot Schematics ------------------ None Fabricated ------------ Nothing Alien Tech Used ----------------- None Achievements -------------- None Challenges ------------ None Game ------ Seed ZionitePlasmaDoomcannon Manual? 0 Play Time 00:03:20 Cumulative 764.7 hours Start 2024.06.15 @ 18:54:48 End 2024.06.15 @ 18:56:31 Sessions 1 Manual Loads 0 Difficulty Rogue Special Mode None Game No. 861 Rogue 583 Adventurer 124 Explorer 154 Win Type - Total 29 Types 23/0/4/1/0/0/0/1/0 Lore% 84 Gallery% 92 Achievement% 77 Wizard Run 0 Options --------- Layout 0 ASCII 0 Keyboard 1 Movement Numpad Keybinds 0 Fullscreen 2 Font 18/Terminus Map View 76x50 Zoom Use 0% Tactical HUD 1 Map Filters NONE Filters SHIFT_HUE(360) Steam 1 RUN: bf9733d0-3cb0-4e0c-96c5-6f73bea1184c